bitfinex/quotes_SOLUSD_20241105
["timestamp","ask_amount","ask_price","bid_price","bid_amount"]
[1730846322258,8.90167151,166.34,166.26,21.0508]
[1730846322439,8.90167151,166.34,166.27,31.22617151]
[1730846322755,8.90167151,166.34,166.28,8.90167151]
[1730846323337,6.0121,166.33,166.28,8.90167151]
[1730846324354,8.90167151,166.31,166.26,21.0508]
[1730846325339,14.91467151,166.31,166.26,15.0362]
[1730846325929,6.0103,166.38,166.29,8.90167151]
[1730846326136,8.90167151,166.37,166.31,32.67855551]
[1730846326949,21.6622038,166.39,166.29,15.7626]
[1730846326950,0.3034038,166.39,166.33,23.776884]
[1730846327164,0.3034038,166.39,166.34,6.0117]
[1730846327532,9.20507531,166.39,166.34,6.0117]
[1730846328133,8.90167151,166.38,166.34,6.0117]
[1730846328335,0.3034038,166.39,166.34,6.0117]
[1730846328558,9.20507531,166.39,166.35,23.776884]
[1730846329066,0.3034038,166.39,166.35,23.776884]
[1730846329229,9.20507531,166.39,166.35,29.788084]
[1730846329435,0.3034038,166.39,166.35,29.788084]
[1730846329662,9.20507531,166.39,166.35,29.788084]
[1730846330639,8.90167151,166.38,166.35,23.776884]
[1730846331959,9.20507531,166.39,166.35,29.788184]
[1730846332745,8.90167151,166.38,166.34,15.0294]
[1730846332955,6.3136038,166.39,166.34,15.0294]
[1730846332956,8.90167151,166.37,166.34,15.0294]
[1730846333171,6.3136038,166.39,166.34,15.0294]
[1730846333340,8.90167151,166.37,166.34,15.0294]
[1730846333849,14.91197151,166.38,166.34,15.0294]
[1730846334356,8.90167151,166.38,166.34,15.0294]
[1730846334667,9.20507531,166.39,166.34,15.0294]
[1730846334839,15.21507531,166.39,166.34,15.0294]
[1730846338363,6.3134038,166.39,166.34,15.0294]
[1730846338852,15.21507531,166.39,166.34,15.0294]
[1730846339051,8.90167151,166.38,166.33,23.776884]
[1730846340064,8.90167151,166.38,166.33,29.788684]
[1730846341157,15.21507531,166.39,166.33,38.69035551]
[1730846341743,14.21507531,166.39,166.33,38.69035551]
[1730846342164,8.90167151,166.4,166.33,53.72065551]
[1730846342464,6.0088,166.42,166.33,53.72065551]
[1730846342465,8.90167151,166.39,166.33,53.72065551]
[1730846342671,8.90167151,166.39,166.33,44.818984]
[1730846343265,8.90167151,166.4,166.33,53.72065551]
[1730846343564,14.91137151,166.4,166.33,53.72065551]
[1730846344065,6.0097,166.4,166.34,15.46577151]
[1730846344367,8.90167151,166.43,166.37,32.67855551]
[1730846344970,6.0078,166.45,166.37,32.67855551]
[1730846345268,8.90167151,166.43,166.37,32.67855551]
[1730846345566,6.0088,166.42,166.37,38.68915551]
[1730846345959,6.0088,166.42,166.37,53.71585551]
[1730846346171,6.0088,166.42,166.37,44.814184]
[1730846346362,6.0074,166.46,166.37,53.71585551]
[1730846346563,8.90167151,166.44,166.37,53.71585551]
[1730846346767,8.90167151,166.44,166.38,8.90167151]
[1730846347458,6.0085,166.43,166.38,14.91187151]
[1730846349057,6.0085,166.43,166.38,6.0102]
[1730846350172,6.0085,166.43,166.39,23.776884]
[1730846350562,6.0074,166.46,166.39,29.786684]
[1730846350753,8.90167151,166.45,166.39,29.786684]
[1730846351652,6.0085,166.43,166.39,29.786684]
[1730846353351,6.0074,166.46,166.41,23.776884]
[1730846354680,6.0074,166.46,166.41,29.785984]
[1730846356356,6.0074,166.46,166.41,38.68765551]
[1730846356679,6.0074,166.46,166.41,53.71075551]
[1730846358177,15.21217531,166.47,166.41,53.71075551]
[1730846359557,6.3105038,166.47,166.41,53.71075551]
[1730846359757,15.21217531,166.47,166.41,53.71075551]
[1730846362978,6.3105038,166.47,166.43,23.776884]
[1730846363968,8.90167151,166.45,166.39,8.90167151]
[1730846364476,8.90167151,166.45,166.38,15.0254]
[1730846364686,8.90167151,166.46,166.39,8.90167151]
[1730846365057,8.90167151,166.46,166.4,23.776884]
[1730846365568,6.0078,166.45,166.41,23.776884]
[1730846372671,14.90947151,166.45,166.4,23.776884]
[1730846372986,14.90947151,166.45,166.39,23.776884]
[1730846373166,14.90947151,166.45,166.39,32.67855551]
[1730846373868,6.0078,166.45,166.39,38.68825551]
[1730846374482,6.0078,166.45,166.39,29.786584]
[1730846374685,6.0078,166.45,166.39,38.68825551]
[1730846374886,6.0078,166.45,166.39,53.71315551]
[1730846375179,6.0078,166.45,166.41,23.776884]
[1730846376180,6.0074,166.46,166.41,23.776884]
[1730846376779,8.90167151,166.45,166.36,6.5506]
[1730846377078,6.0074,166.46,166.37,15.0267]
[1730846377079,8.90167151,166.43,166.37,15.0267]
[1730846378183,6.0088,166.42,166.37,21.0373]
[1730846378798,14.91047151,166.42,166.36,23.776884]
[1730846378967,8.90167151,166.41,166.36,23.776884]
[1730846379173,14.91047151,166.42,166.36,32.67855551]
[1730846382291,14.91047151,166.42,166.36,38.68955551]
[1730846382981,6.0088,166.42,166.4,8.90167151]
[1730846383488,6.0078,166.45,166.4,8.90167151]
[1730846383691,6.0078,166.45,166.39,8.90167151]
[1730846384186,6.0078,166.45,166.38,6.0102]
[1730846384365,6.0078,166.45,166.39,8.90167151]
[1730846384768,6.0078,166.45,166.4,8.90167151]
[1730846388074,14.90907151,166.46,166.4,14.91117151]
[1730846388478,6.0074,166.46,166.41,23.776884]
[1730846388991,6.0074,166.46,166.41,32.67855551]
[1730846389989,6.0074,166.46,166.41,38.68765551]
[1730846390196,6.3105038,166.47,166.41,53.71075551]
[1730846390398,6.3105038,166.47,166.42,8.90167151]
[1730846390577,6.3105038,166.47,166.41,44.809084]
[1730846390775,6.3105038,166.47,166.42,8.90167151]
[1730846391282,6.3105038,166.47,166.43,23.776884]
[1730846391981,0.3034038,166.47,166.45,23.776884]
[1730846392186,0.3034038,166.47,166.45,32.67855551]
[1730846392485,0.3034038,166.47,166.45,23.776884]
[1730846393402,0.3034038,166.47,166.45,29.784484]
[1730846394476,0.3034038,166.47,166.45,44.803984]
[1730846395283,0.3034038,166.47,166.45,53.70565551]
[1730846397390,0.3034038,166.47,166.45,38.796384]
[1730846400099,0.3034038,166.47,166.45,44.804184]
[1730846400303,0.3034038,166.47,166.46,23.776884]
[1730846400488,6.3104038,166.47,166.4,6.0096]
[1730846400981,15.21207531,166.47,166.39,12.2428]
[1730846401280,15.21207531,166.47,166.41,8.90167151]
[1730846402088,6.3104038,166.47,166.42,23.776884]
[1730846402400,15.21207531,166.47,166.42,23.776884]
[1730846402588,15.21207531,166.47,166.4,23.776884]
[1730846402788,15.21207531,166.47,166.39,6.2329]
[1730846402789,8.90167151,166.45,166.39,6.2329]
[1730846402981,8.90167151,166.45,166.39,8.90167151]
[1730846404215,8.90167151,166.43,166.37,8.90167151]
[1730846404399,8.90167151,166.42,166.36,8.90167151]
[1730846404703,8.90167151,166.43,166.36,8.90167151]
[1730846404886,8.90167151,166.43,166.37,8.90167151]
[1730846405075,8.90167151,166.43,166.35,27.2719]
[1730846405279,8.90167151,166.43,166.37,8.90167151]
[1730846405602,6.0088,166.42,166.37,8.90167151]
[1730846405786,6.0088,166.42,166.36,32.67855551]
[1730846410100,6.0088,166.42,166.36,38.68955551]
[1730846410812,6.0088,166.42,166.37,8.90167151]
[1730846411784,6.0088,166.42,166.36,38.68955551]
[1730846413404,8.90167151,166.41,166.35,8.90167151]
[1730846413721,8.90167151,166.4,166.35,23.776884]
[1730846414614,6.0099,166.39,166.35,23.776884]
[1730846415703,8.90167151,166.39,166.35,23.776884]
[1730846417316,14.91177151,166.39,166.35,23.776884]
[1730846418099,6.0085,166.43,166.39,23.776884]
[1730846420815,6.0085,166.43,166.39,32.67855551]
[1730846421187,8.90167151,166.45,166.39,32.67855551]
[1730846421387,6.0081,166.44,166.39,32.67855551]
[1730846421590,14.90977151,166.44,166.39,23.776884]
[1730846422707,8.90167151,166.45,166.39,32.67855551]
[1730846423815,6.0081,166.44,166.39,32.67855551]
[1730846424919,6.0081,166.44,166.39,38.68825551]
[1730846425414,0.3034038,166.47,166.39,38.68825551]
[1730846425624,6.0074,166.46,166.39,53.71315551]
[1730846425817,8.90167151,166.45,166.39,53.71315551]
[1730846426305,8.90167151,166.43,166.39,23.776884]
[1730846426505,8.90167151,166.44,166.39,23.776884]
[1730846427008,14.91017151,166.44,166.39,23.776884]
[1730846429738,8.90167151,166.45,166.39,29.786784]
[1730846430027,8.90167151,166.44,166.39,29.786784]
[1730846430815,14.91007151,166.44,166.39,29.786784]
[1730846431622,6.0084,166.44,166.39,29.786784]
[1730846433633,6.0084,166.44,166.39,38.68845551]
[1730846435912,6.0084,166.44,166.39,23.776884]
[1730846443640,6.0084,166.44,166.39,32.67855551]
[1730846445130,6.0084,166.44,166.39,38.68835551]
[1730846446939,8.90167151,166.46,166.39,38.68835551]
[1730846447145,14.90907151,166.46,166.39,38.68835551]
[1730846448921,14.90907151,166.46,166.39,29.786684]
[1730846449143,14.90907151,166.46,166.39,38.68835551]
[1730846449746,14.90907151,166.46,166.41,23.776884]
[1730846451142,14.90907151,166.46,166.4,8.90167151]
[1730846451143,14.90907151,166.46,166.4,23.776884]
[1730846451530,14.90907151,166.46,166.4,29.786384]
[1730846451728,6.0074,166.46,166.4,29.786384]
[1730846463828,14.90907151,166.46,166.4,29.786384]
[1730846468659,8.90167151,166.45,166.39,23.776884]
[1730846468964,8.90167151,166.45,166.39,29.786584]
[1730846469473,8.90167151,166.45,166.39,38.68825551]
[1730846469973,6.0081,166.44,166.39,38.68825551]
[1730846470463,14.90947151,166.45,166.39,53.71315551]
[1730846471153,6.0078,166.45,166.39,53.71315551]
[1730846471863,14.90947151,166.45,166.39,53.71315551]
[1730846472038,0.3034038,166.47,166.41,8.90167151]
[1730846472239,9.20507531,166.47,166.42,23.776884]
[1730846472662,0.3034038,166.47,166.42,23.776884]
[1730846472969,0.3034038,166.47,166.42,32.67855551]
[1730846473342,0.3034038,166.47,166.44,32.67855551]
[1730846473647,0.3034038,166.47,166.46,32.67855551]
[1730846473871,0.3034038,166.47,166.46,33.05502551]
[1730846474072,0.3034038,166.47,166.46,39.06242551]
[1730846476051,0.3034038,166.47,166.46,59.06242551]
[1730846476870,0.3034038,166.47,166.46,50.160754]
[1730846477072,0.3034038,166.47,166.46,59.06242551]
[1730846480474,0.3034038,166.47,166.46,74.37632551]
[1730846480854,0.3034038,166.47,166.46,110.08301155]
[1730846481054,0.3034038,166.55,166.46,110.08301155]
[1730846481055,0.3034038,166.55,166.49,0.12549]
[1730846481256,0.3034038,166.55,166.54,23.776884]
[1730846481664,0.3034038,166.55,166.54,33.05502551]
[1730846481866,0.3034038,166.55,166.54,39.05952551]
[1730846482356,0.3034038,166.55,166.54,59.05952551]
[1730846490674,0.3034038,166.55,166.54,94.66621155]
[1730846491157,0.3034038,166.55,166.54,94.76621155]
[1730846492881,0.3034038,166.55,166.54,94.86621155]
[1730846493763,0.3034038,166.63,166.55,20.37647]
[1730846494082,0.3034038,166.63,166.61,8.90167151]
[1730846495475,0.3034038,166.63,166.62,23.776884]
[1730846499071,0.3034038,166.63,166.62,29.778484]
[1730846499874,0.3034038,166.63,166.59,0.25098]
[1730846500075,0.3034038,166.63,166.59,32.92953551]
[1730846500488,0.3034038,166.63,166.61,8.90167151]
[1730846500696,0.3034038,166.63,166.62,23.776884]
[1730846504088,0.3034038,166.63,166.61,53.68565551]
[1730846504903,0.3034038,166.63,166.61,44.783984]
[1730846511295,16.1324038,166.63,166.52,0.1]
[1730846511496,8.90167151,166.62,166.53,21.0172]
[1730846511717,8.90167151,166.62,166.56,8.90167151]
[1730846511890,31.03537531,166.63,166.57,8.90167151]
[1730846512395,8.90167151,166.62,166.53,51.0418]
[1730846512606,8.90167151,166.62,166.55,8.90167151]
[1730846513118,8.90167151,166.62,166.53,51.0418]
[1730846513119,31.03537531,166.63,166.56,8.90167151]
[1730846513499,31.03537531,166.63,166.57,6.0034]
[1730846514107,31.03537531,166.63,166.57,14.90507151]
[1730846514614,31.03537531,166.63,166.56,15.0094]
[1730846514615,8.90167151,166.6,166.52,21.0184]
[1730846514800,22.1337038,166.63,166.52,15.0132]
[1730846514801,8.90167151,166.58,166.52,15.0132]
[1730846515005,8.90167151,166.58,166.52,23.91487151]
[1730846515712,8.90167151,166.58,166.52,29.92007151]
[1730846516017,8.90167151,166.6,166.53,8.90167151]
[1730846516594,6.0027,166.59,166.53,8.90167151]
[1730846517298,6.0027,166.59,166.52,21.0184]
[1730846517299,6.0027,166.59,166.54,8.90167151]
[1730846519115,6.0027,166.59,166.53,8.90167151]
[1730846519519,14.90437151,166.59,166.52,15.0132]
[1730846519724,14.90437151,166.59,166.53,8.90167151]
[1730846520023,8.90167151,166.58,166.52,23.91487151]
[1730846520215,8.90167151,166.58,166.52,21.0184]
[1730846520420,8.90167151,166.57,166.5,8.90167151]
[1730846520597,8.90167151,166.57,166.51,23.776884]
[1730846521119,21.0096,166.59,166.51,23.776884]
[1730846521325,21.0096,166.59,166.51,32.67855551]
[1730846521326,8.90167151,166.57,166.51,32.67855551]
[1730846521524,6.0038,166.56,166.51,32.67855551]
[1730846521900,6.0038,166.56,166.51,29.782284]
[1730846522097,8.90167151,166.55,166.46,6.2425]
[1730846522394,8.90167151,166.55,166.47,21.0245]
[1730846522614,8.90167151,166.54,166.47,21.0245]
[1730846522924,8.90167151,166.55,166.49,8.90167151]
[1730846523110,31.36237151,166.56,166.5,8.90167151]
[1730846523314,22.4607,166.56,166.5,14.90757151]
[1730846523713,22.4607,166.56,166.51,23.776884]
[1730846524423,22.4607,166.56,166.51,32.67855551]
[1730846524723,16.4569,166.56,166.51,32.67855551]
[1730846524926,16.4569,166.56,166.52,14.90687151]
[1730846525515,6.0037,166.57,166.53,32.67855551]
[1730846525901,8.90167151,166.59,166.53,32.67855551]
[1730846526121,14.90477151,166.59,166.53,32.67855551]
[1730846526529,14.90477151,166.59,166.53,38.68335551]
[1730846526730,6.0031,166.59,166.54,8.90167151]
[1730846526903,22.4594,166.6,166.55,8.90167151]
[1730846527304,6.0025,166.6,166.55,8.90167151]
[1730846528608,6.0025,166.6,166.55,14.90577151]
[1730846529224,6.0025,166.6,166.56,23.776884]
[1730846531725,8.90167151,166.6,166.56,23.776884]
[1730846532911,14.90427151,166.6,166.53,29.91857151]
[1730846533233,8.90167151,166.59,166.54,23.776884]
[1730846534125,14.90467151,166.59,166.54,23.776884]
[1730846534513,15.3072038,166.63,166.55,8.90167151]
[1730846534707,6.0016,166.62,166.55,8.90167151]
[1730846534905,14.90327151,166.62,166.55,8.90167151]
[1730846535205,6.0016,166.62,166.55,8.90167151]
[1730846535404,8.90167151,166.61,166.55,8.90167151]
[1730846535904,6.0024,166.6,166.55,8.90167151]
[1730846536928,14.90327151,166.62,166.55,8.90167151]
[1730846540023,6.0024,166.6,166.55,8.90167151]
[1730846551145,15.3072038,166.63,166.55,8.90167151]
[1730846551321,8.90167151,166.61,166.55,8.90167151]
[1730846551937,14.90327151,166.62,166.55,8.90167151]
[1730846552136,14.90327151,166.62,166.56,23.776884]
[1730846552440,6.0016,166.62,166.56,32.67855551]
[1730846552621,6.0016,166.62,166.51,15.9944]
[1730846552622,8.90167151,166.57,166.46,1.04251535]
[1730846552827,8.90167151,166.51,166.44,6.0078]
[1730846553035,8.90167151,166.5,166.42,1.04306986]
[1730846553219,8.90167151,166.49,166.42,1.04306986]
[1730846553410,15.0138,166.52,166.43,8.90167151]
[1730846553830,8.90167151,166.49,166.42,8.90167151]
[1730846554030,8.90167151,166.48,166.41,8.90167151]
[1730846554232,8.90167151,166.47,166.4,8.90167151]
[1730846555136,8.90167151,166.46,166.4,8.90167151]
[1730846555340,14.90867151,166.47,166.4,8.90167151]
[1730846556224,6.007,166.47,166.41,8.90167151]
[1730846557522,14.90867151,166.47,166.4,8.90167151]
[1730846559241,8.90167151,166.46,166.39,15.024]
[1730846559539,8.90167151,166.46,166.39,23.92567151]
[1730846559742,6.007,166.47,166.39,23.92567151]
[1730846559946,8.90167151,166.45,166.39,23.92567151]
[1730846560115,8.90167151,166.45,166.39,15.024]
[1730846560435,6.0081,166.44,166.39,15.024]
[1730846560841,14.90977151,166.44,166.36,6.011]
[1730846561042,14.90977151,166.44,166.37,8.90167151]
[1730846562844,8.90167151,166.42,166.35,6.3146038]
[1730846563048,8.90167151,166.42,166.36,8.90167151]
[1730846564247,8.90167151,166.37,166.35,0.3034038]
[1730846564823,8.90167151,166.38,166.35,0.3034038]
[1730846565749,8.90167151,166.37,166.35,0.3034038]
[1730846567646,6.011,166.36,166.35,0.3034038]
[1730846568652,15.024,166.4,166.35,0.3034038]
[1730846568653,6.0099,166.39,166.35,0.3034038]
[1730846568956,0.2,166.43,166.36,8.90167151]
[1730846568957,0.25098,166.43,166.36,8.90167151]
[1730846569249,14.91017151,166.43,166.37,8.90167151]
[1730846569453,6.0085,166.43,166.38,8.90167151]
[1730846569744,6.0078,166.45,166.39,8.90167151]
[1730846569946,16.6005,166.46,166.4,8.90167151]
[1730846569947,25.50217151,166.46,166.4,8.90167151]
[1730846570133,6.0075,166.46,166.41,8.90167151]
[1730846571050,6.0075,166.46,166.4,8.90167151]
[1730846571247,6.0075,166.46,166.4,14.91107151]
[1730846571471,14.90917151,166.46,166.4,14.91107151]
[1730846572026,6.0075,166.46,166.41,32.67855551]
[1730846572244,14.90877151,166.47,166.41,32.67855551]
[1730846572447,6.0071,166.47,166.42,8.90167151]
[1730846572928,8.90167151,166.48,166.42,8.90167151]
[1730846573126,6.0067,166.48,166.43,8.90167151]
[1730846573548,6.0067,166.48,166.43,14.90997151]
[1730846574152,8.90167151,166.5,166.43,14.90997151]
[1730846574348,22.8750238,166.54,166.43,14.90997151]
[1730846574349,22.8750238,166.54,166.45,8.90167151]
[1730846574546,8.90167151,166.52,166.46,23.776884]
[1730846574742,6.0049,166.53,166.46,32.67855551]
[1730846575056,6.0049,166.53,166.47,8.90167151]
[1730846575057,14.90657151,166.53,166.47,8.90167151]
[1730846575246,8.90167151,166.54,166.48,23.776884]
[1730846575550,6.0045,166.54,166.48,32.67855551]
[1730846576050,14.90617151,166.54,166.48,23.776884]
[1730846576349,8.90167151,166.52,166.47,23.776884]
[1730846576930,8.90167151,166.53,166.47,23.776884]
[1730846577346,6.0052,166.52,166.47,23.776884]
[1730846578148,6.0034,166.57,166.49,23.776884]
[1730846578352,6.0034,166.57,166.48,8.90167151]
[1730846578353,6.0034,166.57,166.48,23.776884]
[1730846578674,8.90167151,166.53,166.48,23.776884]
[1730846581450,6.0052,166.52,166.48,23.776884]
[1730846582174,8.90167151,166.5,166.45,23.776884]
[1730846583073,8.90167151,166.5,166.44,6.0079]
[1730846583074,8.90167151,166.49,166.43,15.0208]
[1730846583575,14.90827151,166.49,166.43,21.0293]
[1730846584063,14.90827151,166.49,166.43,15.0208]
[1730846584263,14.90827151,166.49,166.44,23.776884]
[1730846586568,6.0066,166.49,166.44,23.776884]
[1730846586967,8.90167151,166.51,166.44,23.776884]
[1730846587272,6.006,166.5,166.44,8.90167151]
[1730846587459,8.90167151,166.48,166.42,23.776884]
[1730846587655,8.90167151,166.48,166.41,23.776884]
[1730846588764,6.007,166.47,166.41,29.786084]
[1730846590177,6.0063,166.49,166.43,23.776884]
[1730846590981,15.0115,166.54,166.45,23.776884]
[1730846590982,8.90167151,166.52,166.45,23.776884]
[1730846591159,6.0056,166.51,166.45,23.776884]
[1730846592067,6.0056,166.51,166.46,6.0074]
[1730846592379,6.0056,166.51,166.47,23.776884]
[1730846592876,14.90687151,166.52,166.47,23.776884]
[1730846593081,6.0052,166.52,166.47,23.776884]
[1730846593778,6.0049,166.53,166.47,29.783884]
[1730846594862,6.0049,166.53,166.47,23.776884]
[1730846595064,6.0049,166.53,166.47,29.783784]
[1730846595883,6.0049,166.53,166.47,44.801484]
[1730846596265,6.0049,166.53,166.47,38.794584]
[1730846596681,6.0049,166.53,166.47,44.801584]
[1730846597183,6.0049,166.53,166.47,38.794584]
[1730846597365,6.0049,166.53,166.47,23.776884]
[1730846598578,6.0049,166.53,166.47,29.783784]
[1730846598972,8.90167151,166.55,166.47,44.801484]
[1730846601664,6.0045,166.54,166.47,44.801484]
[1730846606672,6.0045,166.54,166.5,23.776884]
[1730846607487,15.5918,166.58,166.5,23.776884]
[1730846607685,14.90507151,166.57,166.5,23.776884]
[1730846608378,14.90507151,166.57,166.51,0.37647]
[1730846608582,14.90507151,166.57,166.51,6.38177]
[1730846608894,6.0034,166.57,166.52,23.776884]
[1730846609274,6.0024,166.6,166.52,23.776884]
[1730846609591,8.90167151,166.59,166.52,32.67855551]
[1730846609795,8.90167151,166.59,166.53,0.37647]
[1730846610086,6.0024,166.6,166.53,0.37647]
[1730846610473,16.5645,166.62,166.53,0.37647]
[1730846610690,16.5645,166.62,166.56,23.776884]
[1730846610691,6.0021,166.61,166.56,23.776884]
[1730846611780,6.0021,166.61,166.56,6.0036]
[1730846611979,8.90167151,166.62,166.57,23.776884]
[1730846612178,14.90337151,166.62,166.57,23.776884]
[1730846613271,0.3034038,166.63,166.57,23.776884]
[1730846613474,6.3047038,166.63,166.57,23.776884]
[1730846614077,6.3047038,166.63,166.57,29.780184]
[1730846615001,6.3047038,166.63,166.58,0.37647]
[1730846615298,6.3047038,166.63,166.59,23.776884]
[1730846616998,0.3034038,166.63,166.59,29.779584]
[1730846617296,0.3034038,166.63,166.59,38.68125551]
[1730846618386,0.3034038,166.63,166.6,9.27814151]
[1730846618595,0.3034038,166.63,166.61,23.776884]
[1730846619672,0.3034038,166.63,166.61,32.67855551]
[1730846619897,0.3034038,166.63,166.61,38.68035551]
[1730846620399,0.3034038,166.63,166.61,53.68545551]
[1730846620774,0.3034038,166.63,166.62,8.90167151]
[1730846620973,0.3034038,166.63,166.62,32.67855551]
[1730846621173,0.3034038,166.63,166.62,23.776884]
[1730846623802,0.3034038,166.63,166.62,24.153354]
[1730846626692,0.3034038,166.63,166.62,23.776884]
[1730846629994,0.3034038,166.63,166.61,23.776884]
[1730846630386,0.3034038,166.63,166.6,23.776884]
[1730846630800,0.3034038,166.63,166.59,8.90167151]
[1730846632306,0.3034038,166.63,166.6,23.776884]
[1730846633001,6.0016,166.62,166.6,23.776884]
[1730846633205,0.3034038,166.63,166.59,32.67855551]
[1730846633784,0.3034038,166.63,166.59,38.68125551]
[1730846634903,0.3034038,166.63,166.58,38.68135551]
[1730846635692,0.3034038,166.63,166.6,23.776884]
[1730846636289,0.3034038,166.63,166.6,29.779184]
[1730846636713,0.3034038,166.63,166.61,8.90167151]
[1730846639492,0.3034038,166.63,166.62,29.778484]
[1730846653525,0.3034038,166.63,166.62,30.154954]
[1730846658194,0.3034038,166.63,166.62,39.05662551]
[1730846658802,0.3034038,166.63,166.62,30.154954]
[1730846659023,0.3034038,166.63,166.62,39.05662551]
[1730846685426,0.3034038,166.63,166.62,59.05662551]
[1730846687656,0.3034038,166.63,166.62,50.154954]
[1730846687823,0.3034038,166.63,166.62,59.05662551]
[1730846693646,0.3034038,166.63,166.62,50.154954]
[1730846693859,0.3034038,166.63,166.62,59.05662551]
[1730846697439,0.3034038,166.63,166.62,50.154954]
[1730846697643,0.3034038,166.63,166.62,59.05662551]
[1730846702731,0.3034038,166.63,166.62,15.15425151]
[1730846703160,0.3034038,166.63,166.62,15.27974151]
[1730846704462,0.3034038,166.63,166.62,39.05662551]
[1730846704834,0.3034038,166.63,166.62,30.154954]
[1730846705054,0.3034038,166.63,166.62,39.05662551]
[1730846705639,0.3034038,166.63,166.62,38.68015551]
[1730846706048,0.3034038,166.63,166.62,29.778484]
[1730846706248,0.3034038,166.63,166.62,38.68015551]
[1730846706442,0.3034038,166.63,166.62,29.778484]
[1730846706644,0.3034038,166.63,166.62,38.68015551]
[1730846707151,0.3034038,166.63,166.62,14.90327151]
[1730846708759,0.3034038,166.63,166.62,38.68015551]
[1730846710641,0.3034038,166.63,166.62,39.05662551]
[1730846713373,0.3034038,166.63,166.62,39.15662551]
[1730846713665,0.3034038,166.63,166.62,30.254954]
[1730846713877,0.3034038,166.63,166.62,39.15662551]
[1730846714088,0.3034038,166.63,166.62,39.25662551]
[1730846714870,0.3034038,166.63,166.62,39.15662551]
[1730846715037,0.3034038,166.72,166.64,0.1]
[1730846715247,0.3034038,166.72,166.71,32.92953551]
[1730846715564,0.3034038,166.72,166.71,33.05502551]
[1730846716154,0.3034038,166.72,166.71,39.05342551]
[1730846719666,0.3034038,166.72,166.71,74.76011155]
[1730846719849,0.3034038,166.72,166.71,74.86011155]
[1730846720461,0.3034038,166.72,166.71,74.66011155]
[1730846720862,0.3034038,166.72,166.71,74.76011155]
[1730846721383,0.3034038,166.72,166.71,74.66011155]
[1730846721680,0.3034038,166.72,166.71,30.151754]
[1730846721889,0.3034038,166.72,166.71,14.90007151]
[1730846722371,0.3034038,166.72,166.71,15.02556151]
[1730846722570,0.3034038,166.72,166.71,6.12389]
[1730846722870,0.3034038,166.72,166.71,15.02556151]
[1730846723077,0.3034038,166.72,166.71,14.90007151]
[1730846723267,0.3034038,166.72,166.71,39.05342551]
[1730846724770,0.3034038,166.72,166.71,74.66011155]
[1730846725170,0.3034038,166.72,166.71,39.05342551]
[1730846725367,0.3034038,166.72,166.71,74.66011155]
[1730846726454,0.3034038,166.72,166.71,39.05342551]
[1730846726888,0.3034038,166.72,166.71,59.05342551]
[1730846727566,0.3034038,166.72,166.71,58.92793551]
[1730846728481,0.3034038,166.72,166.71,5.9984]
[1730846728677,0.3034038,166.72,166.71,34.90007151]
[1730846729678,0.3034038,166.72,166.71,14.90007151]
[1730846730474,0.3034038,166.72,166.71,38.67695551]
[1730846731287,0.3034038,166.72,166.71,29.775284]
[1730846731461,0.3034038,166.72,166.71,38.67695551]
[1730846733478,0.3034038,166.72,166.71,29.775284]
[1730846733789,0.3034038,166.72,166.71,38.67695551]
[1730846736963,0.3034038,166.72,166.71,8.90167151]
[1730846747779,0.3034038,166.72,166.7,8.90167151]
[1730846759199,0.3034038,166.72,166.71,8.90167151]
[1730846759382,0.3034038,166.72,166.7,8.90167151]
[1730846761615,0.3034038,166.72,166.69,8.90167151]
[1730846763893,0.3034038,166.72,166.69,14.90077151]
[1730846766897,6.3016038,166.72,166.67,20.9983]
[1730846767100,6.3016038,166.72,166.67,29.89997151]
[1730846768311,6.3016038,166.72,166.67,20.9983]
[1730846768690,6.3016038,166.72,166.67,29.89997151]
[1730846768894,6.3016038,166.72,166.68,8.90167151]
[1730846769995,6.3016038,166.72,166.67,20.9983]
[1730846770199,6.3016038,166.72,166.67,14.9988]
[1730846770712,6.3016038,166.72,166.67,23.90047151]
[1730846771894,6.3016038,166.72,166.66,6.0001]
[1730846771895,6.3016038,166.72,166.66,14.90177151]
[1730846772591,6.3016038,166.72,166.66,8.90167151]
[1730846772797,21.8043,166.71,166.65,14.90217151]
[1730846773603,21.8043,166.71,166.66,8.90167151]
[1730846773991,27.803,166.71,166.65,8.90167151]
[1730846776403,27.803,166.71,166.64,21.003]
[1730846776602,27.803,166.71,166.64,29.90467151]
[1730846778094,36.70467151,166.71,166.64,29.90467151]
[1730846778898,27.803,166.71,166.65,8.90167151]
[1730846781922,27.803,166.71,166.59,0.37647]